bitfinex/quotes_SOLUSD_20240624
["timestamp","ask_amount","ask_price","bid_price","bid_amount"]
[1719273155085,200.0,132.74,132.7,7.5357]
[1719273155389,20.0,132.73,132.7,7.5357]
[1719273155786,20.0,132.73,132.67,18.843]
[1719273155787,100.0,132.72,132.69,7.5363]
[1719273156505,100.0,132.72,132.67,26.3803]
[1719273156700,100.0,132.72,132.69,7.5362]
[1719273159307,100.0,132.72,132.68,7.5368]
[1719273159515,100.0,132.69,132.68,7.5368]
[1719273162496,107.8805473,132.71,132.68,7.5368]
[1719273162878,100.0,132.69,132.68,7.5369]
[1719273164217,107.8805473,132.71,132.68,7.5369]
[1719273164724,100.0,132.69,132.68,7.5369]
[1719273165617,100.0,132.67,132.64,26.3862]
[1719273165792,100.0,132.67,132.65,7.5385]
[1719273166195,100.0,132.67,132.66,7.538]
[1719273168112,100.0,132.65,132.64,18.8476]
[1719273168310,100.0,132.69,132.67,7.5372]
[1719273169525,100.0,132.69,132.66,18.8445]
[1719273169720,100.0,132.69,132.67,7.5373]
[1719273170013,100.0,132.69,132.66,26.3824]
[1719273170221,107.88128304,132.69,132.67,7.5373]
[1719273172102,7.88128304,132.69,132.68,7.5369]
[1719273172308,100.0,132.71,132.68,7.5369]
[1719273172546,100.0,132.71,132.67,7.5373]
[1719273172690,100.0,132.7,132.67,7.5373]
[1719273172896,100.0,132.68,132.66,26.3824]
[1719273173413,100.0,132.68,132.67,7.5374]
[1719273173914,200.0,132.7,132.67,7.5374]
[1719273174112,200.0,132.7,132.68,7.5368]
[1719273174614,100.0,132.68,132.66,26.3823]
[1719273174816,100.0,132.68,132.67,7.5374]
[1719273175211,107.88205701,132.68,132.67,7.5374]
[1719273180712,100.0,132.66,132.62,18.8494]
[1719273180911,200.0,132.66,132.65,7.5386]
[1719273182608,200.0,132.66,132.64,26.3862]
[1719273183620,200.0,132.66,132.64,18.8472]
[1719273184101,207.88205701,132.68,132.66,18.8446]
[1719273184307,107.88205701,132.68,132.66,18.8446]
[1719273185507,107.88205701,132.68,132.66,26.3821]
[1719273185703,107.88205701,132.68,132.66,18.8446]
[1719273186223,7.88205701,132.68,132.66,18.8446]
[1719273186408,7.88205701,132.68,132.67,7.5374]
[1719273187004,28.69,132.74,132.7,7.5354]
[1719273187005,200.0,132.74,132.7,7.5354]
[1719273187418,100.0,132.71,132.7,7.5354]
[1719273189704,100.0,132.71,132.69,18.84]
[1719273190051,100.0,132.67,132.66,26.3823]
[1719273190211,100.0,132.69,132.67,7.5372]
[1719273191957,100.0,132.67,132.66,26.3822]
[1719273192136,100.0,132.65,132.63,26.3877]
[1719273192337,100.0,132.65,132.64,7.5392]
[1719273192556,100.0,132.67,132.65,7.5385]
[1719273192934,107.88224459,132.67,132.66,7.538]
[1719273193529,107.88224459,132.67,132.65,7.5385]
[1719273195365,107.88224459,132.67,132.66,7.538]
[1719273195654,107.88224459,132.67,132.65,7.5385]
[1719273196653,107.88224459,132.67,132.63,25.05941932]
[1719273196955,107.88224459,132.67,132.66,7.538]
[1719273197131,107.88224459,132.67,132.65,26.3845]
[1719273198363,107.88224459,132.67,132.66,7.538]
[1719273199368,107.88224459,132.67,132.65,18.8461]
[1719273199536,107.88224459,132.67,132.65,18.2195]
[1719273199742,107.88224459,132.67,132.66,7.538]
[1719273199954,107.88224459,132.67,132.65,25.758]
[1719273204942,100.0,132.67,132.65,25.758]
[1719273205145,100.0,132.67,132.66,7.538]
[1719273205841,100.0,132.67,132.65,25.7579]
[1719273206159,100.0,132.67,132.6,60.0725158]
[1719273206363,100.0,132.67,132.62,18.8503]
[1719273206563,100.0,132.67,132.65,7.5385]
[1719273210239,100.0,132.67,132.66,7.538]
[1719273210444,100.0,132.67,132.64,18.8473]
[1719273210648,100.0,132.64,132.63,7.5397]
[1719273212761,100.0,132.66,132.63,18.8488]
[1719273213060,200.0,132.69,132.67,18.8437]
[1719273213271,109.57,132.69,132.67,18.8437]
[1719273213658,109.57,132.69,132.67,26.3807]
[1719273214469,209.57,132.69,132.67,26.3807]
[1719273214646,200.0,132.69,132.67,26.3807]
[1719273216750,200.0,132.69,132.67,18.8437]
[1719273217356,200.0,132.69,132.67,26.3811]
[1719273217949,200.0,132.69,132.67,18.8437]
[1719273220870,200.0,132.69,132.66,7.538]
[1719273220871,100.0,132.66,132.6,37.707]
[1719273221081,100.0,132.66,132.64,7.5386]
[1719273221575,100.0,132.66,132.65,7.5386]
[1719273221752,100.0,132.66,132.64,7.539]
[1719273221953,100.0,132.66,132.63,26.3881]
[1719273222154,100.0,132.66,132.64,7.539]
[1719273226579,100.0,132.64,132.63,26.3882]
[1719273231664,100.0,132.64,132.63,26.3882]
[1719273232493,100.0,132.64,132.57,3.86280303]
[1719273232494,200.0,132.57,132.56,3.86280303]
[1719273232665,15.8969,132.6,132.48,274.55121214]
[1719273232666,100.0,132.53,132.49,5.99521824]
[1719273232990,100.0,132.53,132.45,3.86280303]
[1719273233183,100.0,132.53,132.46,3.86280303]
[1719273233484,100.0,132.54,132.52,7.5459]
[1719273233893,100.0,132.52,132.5,18.8679]
[1719273234265,100.0,132.52,132.5,26.415]
[1719273235466,100.0,132.48,132.44,5.97572079]
[1719273235684,100.0,132.48,132.44,7.5505]
[1719273235685,100.0,132.45,132.44,7.5505]
[1719273236097,100.0,132.45,132.43,26.4278]
[1719273236385,100.0,132.45,132.44,7.5505]
[1719273236582,100.0,132.45,132.43,26.4278]
[1719273236976,100.0,132.45,132.43,18.8767]
[1719273237499,100.0,132.45,132.43,26.4278]
[1719273238493,100.0,132.45,132.43,18.8767]
[1719273238986,100.0,132.43,132.4,16.6352]
[1719273239196,100.0,132.43,132.41,7.5522]
[1719273240289,100.0,132.43,132.42,7.5517]
[1719273241266,100.0,132.47,132.43,18.8768]
[1719273241477,100.0,132.47,132.39,6.19234939]
[1719273241478,100.0,132.45,132.39,6.19234939]
[1719273241690,100.0,132.45,132.37,16.1678]
[1719273241691,100.0,132.44,132.41,7.5522]
[1719273242192,100.0,132.45,132.41,7.5522]
[1719273242193,100.0,132.42,132.41,7.5522]
[1719273242395,100.0,132.42,132.4,18.8818]
[1719273242396,100.0,132.42,132.4,26.4345]
[1719273243976,100.0,132.42,132.39,7.5534]
[1719273244493,100.0,132.4,132.39,7.5534]
[1719273244875,100.0,132.42,132.4,7.5527]
[1719273245496,100.0,132.42,132.39,26.4363]
[1719273246709,120.0,132.46,132.43,7.5511]
[1719273247400,100.0,132.44,132.41,18.8795]
[1719273247578,100.0,132.44,132.41,26.4313]
[1719273247988,100.0,132.44,132.41,18.8795]
[1719273248499,100.0,132.44,132.41,26.4312]
[1719273249598,100.0,132.44,132.42,7.5517]
[1719273250293,120.0,132.46,132.43,18.8773]
[1719273250473,100.0,132.47,132.44,7.5503]
[1719273250684,100.0,132.48,132.46,7.5493]
[1719273251509,100.0,132.48,132.47,7.5488]
[1719273251812,100.0,132.48,132.45,18.8741]
[1719273251995,100.0,132.48,132.46,7.5493]
[1719273253182,100.0,132.48,132.47,7.5488]
[1719273255491,100.0,132.48,132.46,7.5494]
[1719273256207,100.0,132.48,132.41,24.85575688]
[1719273256389,100.0,132.46,132.41,24.85575688]
[1719273256587,100.0,132.46,132.42,7.5512]
[1719273256893,100.0,132.46,132.43,7.5511]
[1719273257490,100.0,132.46,132.43,7.551]
[1719273258282,100.0,132.46,132.44,7.5504]
[1719273258514,100.0,132.48,132.45,7.55]
[1719273259507,100.0,132.48,132.43,18.8769]
[1719273259692,100.0,132.46,132.43,18.8769]
[1719273260006,100.0,132.46,132.44,7.5504]
[1719273261299,100.0,132.46,132.43,26.4278]
[1719273261886,100.0,132.46,132.42,7.5516]
[1719273262095,100.0,132.44,132.41,5.97645688]
[1719273262395,100.0,132.44,132.41,7.5522]
[1719273263303,100.0,132.44,132.42,7.5516]
[1719273263501,100.0,132.43,132.4,32.40923595]
[1719273263804,100.0,132.41,132.4,18.8814]
[1719273264016,100.0,132.41,132.39,7.5533]
[1719273264197,100.0,132.41,132.38,13.74157512]
[1719273264515,100.0,132.41,132.38,7.5538]
[1719273265224,100.0,132.41,132.39,7.5533]
[1719273270315,100.0,132.41,132.4,7.5528]
[1719273270485,200.0,132.43,132.4,7.5528]
[1719273270695,200.0,132.45,132.41,18.8798]
[1719273270906,200.0,132.45,132.43,7.551]
[1719273271199,200.0,132.45,132.42,7.5516]
[1719273271415,100.0,132.43,132.41,26.432]
[1719273272100,100.0,132.43,132.41,18.8798]
[1719273272297,200.0,132.43,132.41,18.8798]
[1719273272498,100.0,132.41,132.4,7.5527]
[1719273273320,100.0,132.43,132.4,18.8815]
[1719273274017,100.0,132.43,132.4,26.4342]
[1719273274222,200.0,132.43,132.4,26.4342]
[1719273275021,100.0,132.43,132.41,7.552]
[1719273275727,100.0,132.43,132.4,26.4343]
[1719273275895,200.0,132.43,132.4,18.8815]
[1719273276311,100.0,132.43,132.4,26.4342]
[1719273276739,100.0,132.43,132.4,18.8815]
[1719273277335,100.0,132.41,132.4,18.8815]
[1719273277904,100.0,132.41,132.38,7.5539]
[1719273278400,100.0,132.41,132.39,7.5532]
[1719273280235,100.0,132.41,132.38,7.5538]
[1719273280403,100.0,132.39,132.37,18.8862]
[1719273280602,100.0,132.39,132.37,26.4403]
[1719273284802,109.61,132.39,132.37,26.4403]
[1719273287928,109.61,132.39,132.37,26.4407]
[1719273290218,109.61,132.39,132.37,18.8862]
[1719273290632,109.61,132.39,132.37,26.4407]
[1719273292125,109.61,132.39,132.37,18.8862]
[1719273292429,109.61,132.39,132.37,26.4407]
[1719273293609,109.61,132.39,132.37,18.8862]
[1719273295117,109.61,132.39,132.37,26.4406]
[1719273295318,230.19034013,132.46,132.39,18.8823]
[1719273295638,200.0,132.48,132.41,9.61]
[1719273295930,9.61,132.46,132.41,9.61]
[1719273296131,200.0,132.48,132.43,18.8766]
[1719273296308,9.61,132.47,132.43,18.8766]
[1719273296515,9.61,132.47,132.43,26.4273]
[1719273296720,100.0,132.46,132.43,26.4273]
[1719273297509,9.61,132.47,132.44,7.5505]
[1719273297716,9.61,132.46,132.43,18.8766]
[1719273297917,109.61,132.46,132.41,9.61]
[1719273298217,109.61,132.46,132.4,7.5523]
[1719273298218,9.61,132.45,132.42,7.5517]
[1719273298423,109.61,132.46,132.42,7.5517]
[1719273299118,100.0,132.44,132.42,7.5517]
[1719273300443,100.0,132.44,132.43,7.5511]
[1719273301117,100.0,132.44,132.41,18.8797]
[1719273301330,100.0,132.44,132.42,7.5514]
[1719273301533,100.0,132.44,132.41,18.8797]
[1719273301534,209.61,132.44,132.38,18.8845]
[1719273301744,209.61,132.4,132.36,6.14033504]
[1719273301946,209.61,132.4,132.33,6.0073]
[1719273301947,9.61,132.39,132.37,7.5544]
[1719273302118,9.61,132.39,132.38,7.554]
[1719273302316,100.0,132.4,132.38,7.554]
[1719273302656,100.0,132.4,132.37,18.8855]
[1719273302657,200.0,132.4,132.34,18.89]
[1719273302814,100.0,132.38,132.34,26.4458]
[1719273303013,200.0,132.38,132.34,26.4458]
[1719273303231,200.0,132.38,132.34,18.89]
[1719273303409,110.66554331,132.4,132.34,18.89]
[1719273303624,100.0,132.41,132.37,7.5545]
[1719273303933,100.0,132.41,132.38,7.5539]
[1719273304353,100.0,132.41,132.39,7.5534]
[1719273304654,100.0,132.41,132.4,7.5528]
[1719273304952,100.0,132.41,132.38,18.8839]
[1719273305754,100.0,132.41,132.38,26.4378]
[1719273306930,100.0,132.41,132.39,7.5534]
[1719273307640,100.0,132.41,132.38,26.4377]
[1719273309958,100.0,132.41,132.38,18.8839]
[1719273310134,100.0,132.41,132.38,26.4378]
[1719273310453,100.0,132.41,132.39,7.5529]
[1719273310945,10.66554331,132.44,132.41,7.5522]
[1719273311152,200.0,132.46,132.42,7.5512]
[1719273311346,207.5495,132.46,132.4,26.4334]
[1719273311550,100.0,132.44,132.4,26.4334]
[1719273311753,100.0,132.44,132.39,7.5533]
[1719273311958,100.0,132.41,132.37,26.4397]
[1719273312247,100.0,132.41,132.37,18.8857]
[1719273312460,100.0,132.43,132.39,7.5533]
[1719273312638,100.0,132.43,132.37,18.8857]
[1719273312955,27.55,132.45,132.37,18.8857]
[1719273312956,100.0,132.41,132.38,7.5539]
[1719273314251,100.0,132.41,132.39,7.5533]
[1719273314644,100.0,132.41,132.4,7.5528]
[1719273314851,100.0,132.43,132.41,7.552]
[1719273315244,20.0,132.45,132.41,7.552]
[1719273315245,120.0,132.45,132.41,7.552]
[1719273316443,100.0,132.43,132.41,7.552]
[1719273317863,100.0,132.43,132.4,7.5527]
[1719273319344,200.0,132.43,132.38,7.5539]
[1719273319559,200.0,132.43,132.39,7.5534]
[1719273319753,200.0,132.43,132.4,7.5528]
[1719273319955,100.0,132.43,132.4,7.5528]
[1719273320158,200.0,132.43,132.38,18.8842]
[1719273320361,100.0,132.43,132.38,18.8842]
[1719273320549,200.0,132.43,132.38,18.8842]
[1719273320760,200.0,132.43,132.39,7.5533]
[1719273321857,100.0,132.41,132.39,7.5533]
[1719273322156,100.0,132.41,132.4,7.5528]
[1719273322645,109.6,132.41,132.39,7.5532]
[1719273323248,109.6,132.41,132.38,26.438]
[1719273323446,109.6,132.41,132.39,7.5533]
[1719273324977,9.6,132.4,132.39,7.5533]
[1719273325461,109.6,132.41,132.39,7.5533]
[1719273326568,100.0,132.41,132.39,7.5533]
[1719273326868,100.0,132.41,132.38,18.8842]
[1719273326869,100.0,132.39,132.38,18.8842]
[1719273327173,109.6,132.39,132.38,18.8842]
[1719273327474,109.6,132.39,132.38,26.4382]
[1719273329267,109.6,132.39,132.33,7.5564]
[1719273329268,100.0,132.36,132.33,7.5564]
[1719273329577,100.0,132.36,132.33,7.5567]
[1719273329578,109.6,132.36,132.33,7.5567]
[1719273330146,109.6,132.36,132.34,7.5561]
[1719273331263,109.6,132.36,132.33,7.5566]
[1719273331472,109.6,132.36,132.34,26.4464]
[1719273332662,109.6,132.36,132.34,18.8903]
[1719273333869,109.6,132.36,132.34,26.4464]
[1719273334063,109.6,132.36,132.34,18.8903]
[1719273334374,9.6,132.35,132.34,18.8903]
[1719273337553,9.6,132.35,132.31,24.99602684]
[1719273337876,9.6,132.35,132.32,7.5569]
[1719273338083,100.0,132.33,132.31,18.8944]
[1719273338263,200.0,132.35,132.31,7.5577]
[1719273338468,9.6,132.34,132.31,7.5577]
[1719273338951,200.0,132.35,132.3,18.8958]
[1719273339151,9.6,132.34,132.31,7.5576]
[1719273342274,9.6,132.34,132.3,32.56753598]
[1719273342453,9.6,132.34,132.3,42.16753598]
[1719273343475,200.0,132.35,132.3,42.16753598]
[1719273343677,209.6,132.35,132.3,42.16753598]
[1719273343881,209.6,132.35,132.3,32.56753598]
[1719273344182,209.6,132.35,132.3,42.16753598]
[1719273344474,9.6,132.34,132.3,25.00913598]
[1719273344658,9.6,132.34,132.3,42.16753598]
[1719273345873,9.6,132.34,132.3,32.56753598]
[1719273346060,209.6,132.35,132.3,42.16753598]
[1719273346371,209.6,132.35,132.31,7.5578]
[1719273350171,200.0,132.35,132.31,7.5578]
[1719273350354,209.6,132.35,132.31,7.5578]
[1719273350778,100.0,132.33,132.3,32.56763598]
[1719273351082,109.6,132.33,132.3,25.00913598]
[1719273351260,100.0,132.33,132.3,32.56763598]
[1719273351664,100.0,132.33,132.3,25.00913598]
[1719273351866,100.0,132.33,132.3,32.56763598]
[1719273355581,100.0,132.3,132.28,7.5596]
[1719273355764,100.0,132.3,132.27,18.9005]
[1719273356080,115.8097,132.33,132.29,18.8969]
[1719273356285,9.6,132.32,132.29,18.8969]
[1719273356458,29.6,132.32,132.29,26.4559]
[1719273357283,9.6,132.31,132.29,18.8969]
[1719273357488,109.6,132.31,132.29,18.8969]
[1719273357867,100.0,132.31,132.29,18.8969]
[1719273358074,109.6,132.31,132.29,18.8969]
[1719273358891,109.6,132.31,132.28,7.5595]
[1719273360403,109.6,132.31,132.29,7.559]
[1719273360581,100.0,132.31,132.29,7.559]
[1719273361067,29.6,132.32,132.29,7.559]
[1719273361689,29.6,132.32,132.23,92.0946]
[1719273361690,109.6,132.3,132.21,15.239]
[1719273361997,9.6,132.35,132.29,17.1586]
[1719273362180,227.9099942,132.43,132.36,18.8869]
[1719273362381,121.8677,132.43,132.39,9.6]
[1719273362582,100.0,132.46,132.39,6.0936]
[1719273362784,100.0,132.46,132.44,9.6]
[1719273363169,100.0,132.46,132.41,26.4318]
[1719273363399,100.0,132.46,132.44,9.6]
[1719273363574,100.0,132.46,132.43,9.6]
[1719273363771,100.0,132.46,132.44,9.6]
[1719273364777,100.0,132.46,132.43,7.5509]
[1719273365093,100.0,132.46,132.44,9.6]
[1719273365974,100.0,132.46,132.45,17.15]
[1719273366696,100.0,132.48,132.45,7.55]
[1719273366867,100.0,132.48,132.46,9.6]
[1719273367475,100.0,132.48,132.45,17.15]
[1719273367773,100.0,132.48,132.47,7.5488]
[1719273367998,9.6,132.5,132.46,26.4217]
[1719273367999,100.0,132.5,132.46,26.4217]
[1719273368174,100.0,132.48,132.46,36.0217]
[1719273368375,100.0,132.47,132.46,28.4724]
[1719273368591,100.0,132.47,132.44,7.5505]
[1719273368781,100.0,132.47,132.44,17.1505]
[1719273369193,100.0,132.47,132.43,26.4286]
[1719273369397,100.0,132.47,132.44,7.5505]
[1719273369696,100.0,132.47,132.45,18.8738]
[1719273369889,100.0,132.47,132.46,7.5494]
[1719273371681,100.0,132.47,132.45,18.8738]
[1719273371902,100.0,132.47,132.44,9.6]
[1719273373686,100.0,132.47,132.44,28.4756]
[1719273373996,100.0,132.51,132.46,18.8725]
[1719273374187,100.0,132.52,132.49,9.6]
[1719273374392,100.0,132.52,132.5,7.547]
[1719273374577,100.0,132.52,132.49,17.1475]
[1719273375277,100.0,132.52,132.5,9.6]
[1719273375492,100.0,132.52,132.5,17.147]
[1719273375706,100.0,132.53,132.51,9.6]
[1719273376706,100.0,132.53,132.5,7.547]
[1719273377008,106.1382,132.56,132.52,7.5455]
[1719273377307,100.0,132.58,132.55,7.5439]
[1719273377485,100.0,132.58,132.54,7.5447]
[1719273377682,100.0,132.59,132.54,7.5447]
[1719273377988,20.0,132.58,132.55,7.5441]
[1719273378194,100.0,132.58,132.55,7.5441]
[1719273379319,100.0,132.59,132.57,7.543]
[1719273380399,206.2012,132.6,132.56,18.8591]
[1719273380592,200.0,132.58,132.53,18.8632]
[1719273380811,100.0,132.56,132.53,26.4085]
[1719273380995,200.0,132.54,132.5,26.4141]
[1719273381206,200.0,132.54,132.51,7.5465]
[1719273381993,200.0,132.54,132.52,7.546]
[1719273382197,100.0,132.54,132.52,7.546]
[1719273382737,100.0,132.54,132.53,7.5454]
[1719273382916,100.0,132.54,132.5,18.8671]
[1719273383499,200.0,132.56,132.53,7.5454]
[1719273383707,200.0,132.56,132.52,26.4102]
[1719273384010,100.0,132.54,132.52,18.8643]
[1719273385322,100.0,132.62,132.53,22.4505]
[1719273385505,100.0,132.65,132.6,7.5409]
[1719273385816,100.0,132.63,132.6,7.5412]
[1719273385996,200.0,132.63,132.6,7.5412]
[1719273386423,200.0,132.63,132.59,26.3962]
[1719273386721,100.0,132.61,132.59,26.3962]
[1719273387121,100.0,132.59,132.55,18.8595]
[1719273387305,200.0,132.61,132.55,18.8595]
[1719273387623,100.0,132.59,132.57,7.5428]
[1719273388299,100.0,132.59,132.58,7.5426]
[1719273388500,100.0,132.59,132.57,18.8571]
[1719273388914,200.0,132.59,132.57,18.8571]
[1719273389216,100.0,132.59,132.57,18.8571]
[1719273389717,100.0,132.59,132.57,26.4001]
[1719273389924,200.0,132.59,132.57,26.4001]
[1719273390091,100.0,132.59,132.57,26.4001]
[1719273390298,200.0,132.61,132.58,7.5423]
[1719273391922,200.0,132.61,132.54,5.97104179]
[1719273392131,200.0,132.61,132.59,18.8543]
[1719273395221,200.0,132.61,132.6,7.5414]
[1719273395421,100.0,132.65,132.61,18.8512]
[1719273395719,100.0,132.65,132.61,26.3919]
[1719273396304,100.0,132.65,132.62,7.5401]
[1719273396815,100.0,132.64,132.61,26.3919]
[1719273397222,100.0,132.6,132.53,16.4122]
[1719273397424,100.0,132.61,132.53,16.4122]
[1719273397616,100.0,132.58,132.56,7.5436]
[1719273397815,100.0,132.58,132.55,26.4048]
[1719273398001,100.0,132.58,132.56,7.5437]
[1719273399421,100.0,132.58,132.57,7.5431]
[1719273399922,100.0,132.58,132.56,7.5435]
[1719273400313,200.0,132.58,132.55,26.4048]
[1719273400628,200.0,132.58,132.55,18.8606]
[1719273400812,100.0,132.56,132.54,7.5447]
[1719273401001,100.0,132.54,132.52,18.8645]
[1719273401498,100.0,132.54,132.52,26.4103]
[1719273402105,100.0,132.54,132.53,7.5454]
[1719273402308,200.0,132.54,132.5,7.5466]
[1719273402626,200.0,132.54,132.49,18.8685]
[1719273402627,200.0,132.54,132.51,7.5464]
[1719273402831,100.0,132.52,132.51,7.5464]
[1719273403040,200.0,132.52,132.49,26.4158]
[1719273403197,200.0,132.52,132.5,7.547]
[1719273404413,100.0,132.52,132.5,7.547]
[1719273405705,200.0,132.52,132.5,7.547]
[1719273406128,200.0,132.52,132.49,26.4161]
[1719273406313,100.0,132.5,132.46,34.354]
[1719273406514,100.0,132.5,132.48,7.5481]
[1719273406721,100.0,132.5,132.49,7.5477]
[1719273409527,100.0,132.5,132.48,18.8702]
[1719273409916,100.0,132.5,132.48,26.4183]
[1719273410233,100.0,132.5,132.49,7.5477]
[1719273412536,100.0,132.5,132.48,26.4183]
[1719273413812,100.0,132.5,132.49,7.5477]
[1719273414234,100.0,132.5,132.48,18.8702]
[1719273414543,200.0,132.5,132.46,7.5489]
[1719273414710,200.0,132.5,132.47,7.5487]
[1719273415413,200.0,132.48,132.45,26.4238]
[1719273415718,200.0,132.48,132.45,18.8744]
[1719273416326,200.0,132.48,132.45,26.4244]
[1719273416834,100.0,132.48,132.45,26.4244]
[1719273420214,100.0,132.48,132.46,7.5492]
[1719273420614,100.0,132.48,132.45,26.4242]
[1719273420814,200.0,132.5,132.46,7.5493]
[1719273421338,100.0,132.48,132.45,26.4243]
[1719273421513,200.0,132.48,132.45,26.4243]
[1719273421835,100.0,132.48,132.45,26.4243]
[1719273423238,200.0,132.48,132.45,26.4243]
[1719273423439,200.0,132.48,132.45,18.8744]
[1719273424341,200.0,132.48,132.45,26.4242]
[1719273425033,200.0,132.48,132.45,18.8744]
[1719273426731,100.0,132.46,132.44,7.5503]
[1719273426934,100.0,132.46,132.43,7.5509]
[1719273427448,100.0,132.46,132.44,7.5505]
[1719273430329,100.0,132.46,132.45,7.55]
[1719273430521,200.0,132.48,132.45,7.55]
[1719273431236,100.0,132.46,132.45,7.55]
[1719273431727,100.0,132.46,132.44,18.8761]
[1719273432032,100.0,132.46,132.44,26.4266]
[1719273432749,200.0,132.46,132.44,18.8761]
[1719273433039,200.0,132.46,132.44,26.4266]
[1719273433744,200.0,132.46,132.43,7.5506]
[1719273433958,200.0,132.46,132.44,7.5505]
[1719273434129,200.0,132.46,132.43,26.4278]
[1719273434643,200.0,132.46,132.43,18.8768]
[1719273434843,200.0,132.46,132.43,26.4277]
[1719273435232,200.0,132.46,132.44,7.5504]
[1719273435437,200.0,132.46,132.43,26.4277]
[1719273435620,100.0,132.46,132.44,7.5505]
[1719273435826,200.0,132.48,132.45,7.5498]
[1719273436032,200.0,132.48,132.44,7.5505]
[1719273436254,200.0,132.46,132.43,26.4278]
[1719273436454,200.0,132.46,132.43,18.8768]
[1719273437388,200.0,132.46,132.41,7.5521]
[1719273437531,200.0,132.46,132.4,18.8816]
[1719273437733,200.0,132.46,132.42,7.5516]
[1719273438149,200.0,132.46,132.43,7.551]
[1719273438655,209.6,132.46,132.43,7.551]
[1719273438952,209.6,132.46,132.43,7.5511]
[1719273442056,100.0,132.46,132.44,7.5503]
[1719273442248,100.0,132.48,132.45,9.6]
[1719273442446,100.0,132.48,132.46,17.1493]
[1719273442643,205.58075366,132.52,132.47,9.6]
[1719273442844,215.18075366,132.52,132.47,9.6]
[1719273443158,215.18075366,132.52,132.47,17.1487]
[1719273443759,100.0,132.49,132.46,18.8727]
[1719273444056,100.0,132.46,132.43,26.4283]
[1719273444231,100.0,132.46,132.44,9.6]
[1719273444432,100.0,132.46,132.43,36.0283]
[1719273444661,100.0,132.46,132.44,7.5505]
[1719273445038,100.0,132.46,132.43,26.4281]
[1719273445352,200.0,132.46,132.43,26.4281]
[1719273445860,100.0,132.44,132.43,18.8772]
[1719273446146,200.0,132.46,132.43,18.8772]
[1719273448954,200.0,132.46,132.42,7.5515]
[1719273449464,100.0,132.44,132.42,7.5515]
[1719273451938,200.0,132.44,132.4,18.8811]
[1719273452144,200.0,132.44,132.4,26.4335]
[1719273452338,100.0,132.42,132.37,56.6564]
[1719273452952,100.0,132.42,132.39,7.5529]
[1719273453452,100.0,132.42,132.4,7.5528]
[1719273454162,100.0,132.44,132.41,18.8796]
[1719273454357,200.0,132.44,132.42,7.5517]